fUSD/lending_fUSD_20250921
["ID","MTS","AMOUNT","RATE_DAILY","PERIOD"]
[386598052,1758413437878,-400.0,0.00021917,2]
[386598054,1758413437888,-400.0,0.00021917,2]
[386598056,1758413437897,-400.0,0.00021917,2]
[386598058,1758413437907,-400.0,0.00021917,2]
[386598060,1758413437916,-827.51,0.00021917,2]
[386598062,1758413437925,-490.05,0.00021917,2]
[386598063,1758413437934,-1174.04,0.00021917,2]
[386598065,1758413437944,-1648.53,0.00021917,2]
[386598067,1758413437953,-400.0,0.00021917,2]
[386598068,1758413437962,-1357.23,0.00021917,2]
[386598069,1758413437972,-400.0,0.00021917,2]
[386598070,1758413437982,-400.0,0.00021917,2]
[386598071,1758413437991,-400.0,0.00021917,2]
[386598072,1758413438001,-400.0,0.00021917,2]
[386598073,1758413438010,-400.0,0.00021917,2]
[386598074,1758413438021,-400.0,0.00021917,2]
[386598075,1758413438031,-432.97,0.00021917,2]
[386598076,1758413438040,-400.0,0.00021917,2]
[386598077,1758413438049,-400.0,0.00021917,2]
[386598078,1758413438059,-500.0,0.00021917,2]
[386598079,1758413438069,-500.0,0.00021917,2]
[386598080,1758413438078,-523.16,0.00021917,2]
[386598081,1758413438088,-400.0,0.00021917,2]
[386598082,1758413438097,-1134.67,0.00021917,2]
[386598083,1758413438107,-1295.25,0.00021917,2]
[386598084,1758413438117,-400.0,0.00021917,2]
[386598085,1758413438127,-400.0,0.00021917,2]
[386598086,1758413438137,-404.58,0.00021917,2]
[386598087,1758413438147,-400.0,0.00021917,2]
[386598088,1758413438156,-400.0,0.00021917,2]
[386598089,1758413438165,-596.34,0.00021917,2]
[386598090,1758413438175,-400.0,0.00021917,2]
[386598091,1758413438184,-400.0,0.00021917,2]
[386598092,1758413438195,-1393.2,0.00021917,2]
[386598093,1758413438204,-400.0,0.00021917,2]
[386598094,1758413438215,-1310.79,0.00021917,2]
[386598095,1758413438224,-400.0,0.00021917,2]
[386598096,1758413438234,-400.0,0.00021917,2]
[386598097,1758413438244,-1106.87,0.00021917,2]
[386598098,1758413438253,-400.0,0.00021917,2]
[386598099,1758413438264,-400.0,0.00021917,2]
[386598100,1758413438274,-400.0,0.00021917,2]
[386598101,1758413438284,-400.0,0.00021917,2]
[386598102,1758413438295,-400.0,0.00021917,2]
[386598103,1758413438306,-400.0,0.00021917,2]
[386598105,1758413438316,-824.0,0.00021917,2]
[386598106,1758413438326,-400.0,0.00021917,2]
[386598107,1758413438336,-400.0,0.00021917,2]
[386598108,1758413438346,-476.53,0.00021917,2]
[386598110,1758413438356,-400.0,0.00021917,2]
[386598112,1758413438366,-1297.39,0.00021917,2]
[386598114,1758413438375,-400.0,0.00021917,2]
[386598116,1758413438384,-463.35,0.00021917,2]
[386598117,1758413438394,-852.32,0.00021917,2]
[386598119,1758413438404,-400.0,0.00021917,2]
[386598121,1758413438414,-400.0,0.00021917,2]
[386598123,1758413438424,-1398.08,0.00021917,2]
[386598125,1758413438434,-400.0,0.00021917,2]
[386598127,1758413438444,-416.54,0.00021917,2]
[386598129,1758413438453,-581.75,0.00021917,2]
[386598131,1758413438463,-400.0,0.00021917,2]
[386598133,1758413438473,-400.0,0.00021917,2]
[386598135,1758413438482,-462.52,0.00021917,2]
[386598137,1758413438492,-400.0,0.00021917,2]
[386598139,1758413438502,-400.0,0.00021917,2]
[386598141,1758413438511,-400.0,0.00021917,2]
[386598144,1758413438521,-400.0,0.00021917,2]
[386598147,1758413438530,-400.0,0.00021917,2]
[386598150,1758413438542,-430.86,0.00021917,2]
[386598153,1758413438552,-400.0,0.00021917,2]
[386598155,1758413438562,-400.0,0.00021917,2]
[386598157,1758413438572,-465.78,0.00021917,2]
[386598158,1758413438581,-400.0,0.00021917,2]
[386598160,1758413438591,-943.12,0.00021917,2]
[386598162,1758413438600,-400.0,0.00021917,2]
[386598164,1758413438610,-400.0,0.00021917,2]
[386598166,1758413438620,-400.0,0.00021917,2]
[386598168,1758413438630,-400.68,0.00021917,2]
[386598170,1758413438640,-400.0,0.00021917,2]
[386598172,1758413438650,-400.0,0.00021917,2]
[386598174,1758413438659,-400.0,0.00021917,2]
[386598176,1758413438669,-844.03,0.00021917,2]
[386598178,1758413438678,-1281.19,0.00021917,2]
[386598180,1758413438689,-1497.27,0.00021917,2]
[386598182,1758413438700,-1360.27,0.00021917,2]
[386598184,1758413438709,-400.0,0.00021917,2]
[386598185,1758413438718,-533.52,0.00021917,2]
[386598186,1758413438728,-518.92,0.00021917,2]
[386598187,1758413438737,-224.53750223,0.00021917,2]
[386598188,1758413438746,-400.0,0.00021917,2]
[386598189,1758413438756,-400.0,0.00021917,2]
[386598190,1758413438765,-795.29,0.00021917,2]
[386598191,1758413438774,-400.0,0.00021917,2]
[386598192,1758413438784,-400.0,0.00021917,2]
[386598193,1758413438794,-400.0,0.00021917,2]
[386598195,1758413438803,-485.4,0.00021917,2]
[386598197,1758413438813,-400.0,0.00021917,2]
[386598199,1758413438822,-538.90898322,0.00021917,2]
[386598201,1758413438831,-400.0,0.00021917,2]
[386598203,1758413438841,-653.72,0.00021917,2]
[386598205,1758413438851,-505.74,0.00021917,2]
[386598207,1758413438861,-400.0,0.00021917,2]
[386598209,1758413438870,-400.0,0.00021917,2]
[386598211,1758413438880,-1421.38,0.00021917,2]
[386598213,1758413438890,-442.16,0.00021917,2]
[386598215,1758413438900,-400.0,0.00021917,2]
[386598217,1758413438909,-1343.29,0.00021917,2]
[386598219,1758413438919,-426.99,0.00021917,2]
[386598221,1758413438930,-400.0,0.00021917,2]
[386598223,1758413438939,-400.0,0.00021917,2]
[386598225,1758413438949,-400.0,0.00021917,2]
[386598227,1758413438958,-1193.34,0.00021917,2]
[386598229,1758413438967,-1712.5,0.00021917,2]
[386598230,1758413438976,-1230.24,0.00021917,2]
[386598232,1758413438986,-1176.33,0.00021917,2]
[386598234,1758413438995,-489.14,0.00021917,2]
[386598236,1758413439005,-441.57,0.00021917,2]
[386598238,1758413439014,-400.0,0.00021917,2]
[386598240,1758413439023,-400.0,0.00021917,2]
[386598242,1758413439033,-621.98,0.00021917,2]
[386598244,1758413439043,-400.0,0.00021917,2]
[386598246,1758413439053,-400.0,0.00021917,2]
[386598248,1758413439063,-500.0,0.00021917,2]
[386598250,1758413439072,-199.08,0.00021917,2]
[386598253,1758413439082,-400.0,0.00021917,2]
[386598255,1758413439091,-870.13,0.00021917,2]
[386598257,1758413439101,-536.03,0.00021917,2]
[386598259,1758413439111,-400.0,0.00021917,2]
[386598261,1758413439120,-400.0,0.00021917,2]
[386598263,1758413439129,-400.0,0.00021917,2]
[386598265,1758413439138,-1024.78,0.00021917,2]
[386598267,1758413439148,-400.0,0.00021917,2]
[386598269,1758413439157,-400.0,0.00021917,2]
[386598271,1758413439166,-400.0,0.00021917,2]
[386598273,1758413439176,-400.0,0.00021917,2]
[386598275,1758413439185,-400.0,0.00021917,2]
[386598277,1758413439194,-400.0,0.00021917,2]
[386598278,1758413439203,-400.0,0.00021917,2]
[386598280,1758413439213,-400.0,0.00021917,2]
[386598283,1758413439223,-400.0,0.00021917,2]
[386598284,1758413439232,-803.96,0.00021917,2]
[386598287,1758413439243,-2331.46,0.00021917,2]
[386598299,1758413439356,-1025.4,0.00021917,2]
[386598301,1758413439366,-865.96,0.00021917,2]
[386598303,1758413439376,-594.16,0.00021917,2]
[386598305,1758413439386,-400.0,0.00021917,2]
[386598307,1758413439395,-400.0,0.00021917,2]
[386598309,1758413439406,-1503.16,0.00021917,2]
[386598311,1758413439415,-400.0,0.00021917,2]
[386598313,1758413439426,-400.0,0.00021917,2]
[386598315,1758413439437,-400.0,0.00021917,2]
[386598317,1758413439447,-704.77,0.00021917,2]
[386598319,1758413439456,-400.0,0.00021917,2]
[386598321,1758413439466,-1461.3,0.00021917,2]
[386598323,1758413439475,-1571.92,0.00021917,2]
[386598325,1758413439485,-400.0,0.00021917,2]
[386598327,1758413439495,-400.0,0.00021917,2]
[386598329,1758413439505,-459.59,0.00021917,2]
[386598331,1758413439514,-460.54,0.00021917,2]
[386598333,1758413439523,-400.0,0.00021917,2]
[386598335,1758413439533,-400.0,0.00021917,2]
[386598337,1758413439543,-400.0,0.00021917,2]
[386598339,1758413439553,-1499.96,0.00021917,2]
[386598341,1758413439562,-1421.98,0.00021917,2]
[386598343,1758413439572,-400.0,0.00021917,2]
[386598345,1758413439582,-863.04,0.00021917,2]
[386598347,1758413439591,-400.0,0.00021917,2]
[386598349,1758413439603,-3111.82,0.00021917,2]
[386598351,1758413439612,-400.0,0.00021917,2]
[386598353,1758413439622,-706.54,0.00021917,2]
[386598355,1758413439631,-1139.01,0.00021917,2]
[386598357,1758413439641,-1075.26,0.00021917,2]
[386598359,1758413439651,-617.26,0.00021917,2]
[386598361,1758413439660,-843.73,0.00021917,2]
[386598363,1758413439669,-1311.75,0.00021917,2]
[386598365,1758413439679,-475.83,0.00021917,2]
[386598368,1758413439690,-400.0,0.00021917,2]
[386598371,1758413439701,-1319.69,0.00021917,2]
[386598373,1758413439710,-400.0,0.00021917,2]
[386598375,1758413439720,-1435.05,0.00021917,2]
[386598377,1758413439731,-1288.88,0.00021917,2]
[386598379,1758413439740,-1432.36,0.00021917,2]
[386598381,1758413439749,-400.0,0.00021917,2]
[386598383,1758413439758,-418.22,0.00021917,2]
[386598384,1758413439770,-400.0,0.00021917,2]
[386598386,1758413439780,-400.0,0.00021917,2]
[386598389,1758413439790,-400.0,0.00021917,2]
[386598392,1758413439799,-400.0,0.00021917,2]
[386598395,1758413439809,-400.0,0.00021917,2]
[386598398,1758413439818,-400.0,0.00021917,2]
[386598401,1758413439828,-400.0,0.00021917,2]
[386598405,1758413439842,-433.9,0.00021917,2]
[386598408,1758413439854,-400.0,0.00021917,2]
[386598411,1758413439864,-400.0,0.00021917,2]
[386598414,1758413439873,-400.0,0.00021917,2]
[386598417,1758413439884,-400.0,0.00021917,2]
[386598420,1758413439893,-400.0,0.00021917,2]
[386598423,1758413439902,-414.05,0.00021917,2]
[386598426,1758413439911,-500.0,0.00021917,2]
[386598430,1758413439923,-400.0,0.00021917,2]
[386598433,1758413439932,-500.0,0.00021917,2]
[386598436,1758413439942,-500.0,0.00021917,2]
[386598439,1758413439951,-1311.96,0.00021917,2]
[386598442,1758413439960,-456.18446128,0.00021917,2]
[386598445,1758413439970,-543.74,0.00021917,2]
[386598448,1758413439980,-400.0,0.00021917,2]
[386598450,1758413439991,-400.0,0.00021917,2]
[386598455,1758413440004,-1744.19,0.00021917,2]
[386598457,1758413440015,-763.69,0.00021917,2]
[386598461,1758413440025,-400.0,0.00021917,2]
[386598463,1758413440034,-400.0,0.00021917,2]
[386598466,1758413440044,-1325.12,0.00021917,2]
[386598469,1758413440053,-400.0,0.00021917,2]
[386598471,1758413440063,-1018.8,0.00021917,2]
[386598474,1758413440072,-527.49,0.00021917,2]
[386598477,1758413440082,-400.0,0.00021917,2]
[386598480,1758413440092,-982.62,0.00021917,2]
[386598483,1758413440104,-400.0,0.00021917,2]
[386598486,1758413440114,-400.0,0.00021917,2]
[386598489,1758413440123,-1498.36,0.00021917,2]
[386598493,1758413440133,-1408.81,0.00021917,2]
[386598495,1758413440142,-400.0,0.00021917,2]
[386598498,1758413440152,-400.0,0.00021917,2]
[386598501,1758413440161,-400.0,0.00021917,2]
[386598504,1758413440171,-400.0,0.00021917,2]
[386598507,1758413440180,-472.97,0.00021917,2]
[386598510,1758413440190,-400.0,0.00021917,2]
[386598513,1758413440200,-1364.32,0.00021917,2]
[386598515,1758413440212,-717.22,0.00021917,2]
[386598517,1758413440222,-400.0,0.00021917,2]
[386598520,1758413440233,-1468.87,0.00021917,2]
[386598522,1758413440243,-2065.0,0.00021917,2]
[386598523,1758413440252,-400.0,0.00021917,2]
[386598527,1758413440261,-400.0,0.00021917,2]
[386598528,1758413440271,-770.17,0.00021917,2]
[386598530,1758413440280,-710.26,0.00021917,2]
[386598532,1758413440290,-400.0,0.00021917,2]
[386598534,1758413440299,-579.96,0.00021917,2]
[386598536,1758413440309,-400.0,0.00021917,2]
[386598538,1758413440318,-857.68,0.00021917,2]
[386598540,1758413440327,-400.0,0.00021917,2]
[386598542,1758413440337,-400.0,0.00021917,2]
[386598544,1758413440347,-400.0,0.00021917,2]
[386598546,1758413440358,-507.36,0.00021917,2]
[386598548,1758413440368,-400.0,0.00021917,2]
[386598550,1758413440378,-400.0,0.00021917,2]
[386598552,1758413440388,-563.09,0.00021917,2]
[386598554,1758413440397,-1411.46,0.00021917,2]
[386598556,1758413440407,-1465.8,0.00021917,2]
[386598558,1758413440417,-400.0,0.00021917,2]
[386598561,1758413440427,-1422.1,0.00021917,2]
[386598563,1758413440437,-400.0,0.00021917,2]
[386598565,1758413440446,-400.0,0.00021917,2]
[386598567,1758413440456,-400.0,0.00021917,2]
[386598569,1758413440466,-619.32,0.00021917,2]
[386598571,1758413440476,-400.0,0.00021917,2]
[386598573,1758413440485,-809.48,0.00021917,2]
[386598575,1758413440494,-400.0,0.00021917,2]
[386598577,1758413440503,-1694.96,0.00021917,2]
[386598578,1758413440513,-400.0,0.00021917,2]
[386598579,1758413440523,-455.36,0.00021917,2]
[386598581,1758413440532,-958.5,0.00021917,2]
[386598582,1758413440541,-601.24,0.00021917,2]
[386598583,1758413440551,-400.0,0.00021917,2]
[386598584,1758413440561,-400.0,0.00021917,2]
[386598585,1758413440570,-541.61,0.00021917,2]
[386598587,1758413440580,-1160.87,0.00021917,2]
[386598589,1758413440589,-400.0,0.00021917,2]
[386598591,1758413440599,-1403.58,0.00021917,2]
[386598593,1758413440609,-400.0,0.00021917,2]
[386598595,1758413440619,-842.16,0.00021917,2]
[386598597,1758413440628,-542.39,0.00021917,2]
[386598599,1758413440637,-863.12,0.00021917,2]
[386598601,1758413440647,-400.0,0.00021917,2]
[386598604,1758413440657,-400.0,0.00021917,2]
[386598607,1758413440666,-1347.12,0.00021917,2]
[386598610,1758413440675,-912.66,0.00021917,2]
[386598613,1758413440685,-400.0,0.00021917,2]
[386598616,1758413440702,-726.38,0.00021917,2]
[386598618,1758413440712,-400.0,0.00021917,2]
[386598621,1758413440721,-400.0,0.00021917,2]
[386598624,1758413440730,-400.0,0.00021917,2]
[386598627,1758413440740,-400.0,0.00021917,2]
[386598630,1758413440749,-2859.96,0.00021917,2]
[386598632,1758413440758,-709.19,0.00021917,2]
[386598634,1758413440767,-400.0,0.00021917,2]
[386598636,1758413440777,-400.0,0.00021917,2]
[386598638,1758413440786,-838.58,0.00021917,2]
[386598640,1758413440795,-400.0,0.00021917,2]
[386598642,1758413440806,-400.0,0.00021917,2]
[386598644,1758413440815,-400.0,0.00021917,2]
[386598646,1758413440824,-1554.2,0.00021917,2]
[386598648,1758413440833,-400.0,0.00021917,2]
[386598650,1758413440843,-400.0,0.00021917,2]
[386598652,1758413440853,-400.0,0.00021917,2]
[386598654,1758413440865,-1179.37,0.00021917,2]
[386598656,1758413440874,-400.0,0.00021917,2]
[386598658,1758413440883,-400.0,0.00021917,2]
[386598661,1758413440893,-400.0,0.00021917,2]
[386598663,1758413440903,-400.0,0.00021917,2]
[386598665,1758413440912,-401.04,0.00021917,2]
[386598666,1758413440922,-400.0,0.00021917,2]
[386598667,1758413440931,-1685.7,0.00021917,2]
[386598668,1758413440940,-400.0,0.00021917,2]
[386598669,1758413440949,-951.42,0.00021917,2]
[386598670,1758413440959,-2682.64,0.00021917,2]
[386598671,1758413440968,-400.0,0.00021917,2]
[386598672,1758413440977,-400.0,0.00021917,2]
[386598673,1758413440986,-1459.79,0.00021917,2]
[386598674,1758413440995,-400.0,0.00021917,2]
[386598675,1758413441004,-1479.35,0.00021917,2]
[386598677,1758413441013,-400.0,0.00021917,2]
[386598679,1758413441023,-1597.51,0.00021917,2]
[386598681,1758413441032,-400.0,0.00021917,2]
[386598683,1758413441042,-400.0,0.00021917,2]
[386598685,1758413441052,-400.0,0.00021917,2]
[386598687,1758413441061,-500.0,0.00021917,2]
[386598689,1758413441071,-517.38,0.00021917,2]
[386598691,1758413441080,-505.95,0.00021917,2]
[386598693,1758413441093,-1395.49,0.00021917,2]
[386598695,1758413441103,-400.0,0.00021917,2]
[386598697,1758413441113,-1340.38,0.00021917,2]
[386598699,1758413441122,-400.0,0.00021917,2]
[386598701,1758413441131,-1130.42,0.00021917,2]
[386598703,1758413441141,-1879.24,0.00021917,2]
[386598705,1758413441150,-400.0,0.00021917,2]
[386598707,1758413441160,-400.0,0.00021917,2]
[386598709,1758413441169,-883.24,0.00021917,2]
[386598711,1758413441179,-400.0,0.00021917,2]
[386598713,1758413441188,-400.0,0.00021917,2]
[386598715,1758413441197,-400.0,0.00021917,2]
[386598717,1758413441207,-1222.13,0.00021917,2]
[386598719,1758413441216,-400.0,0.00021917,2]
[386598721,1758413441226,-692.54,0.00021917,2]
[386598723,1758413441235,-826.28,0.00021917,2]
[386598725,1758413441244,-1498.51,0.00021917,2]
[386598727,1758413441253,-400.0,0.00021917,2]
[386598729,1758413441263,-2281.4,0.00021917,2]
[386598731,1758413441272,-499.79,0.00021917,2]
[386598733,1758413441281,-400.0,0.00021917,2]
[386598735,1758413441290,-973.95,0.00021917,2]
[386598737,1758413441299,-400.0,0.00021917,2]
[386598739,1758413441309,-438.5,0.00021917,2]
[386598741,1758413441318,-400.0,0.00021917,2]
[386598743,1758413441328,-1553.05,0.00021917,2]
[386598745,1758413441338,-400.0,0.00021917,2]
[386598747,1758413441347,-400.0,0.00021917,2]
[386598749,1758413441358,-400.0,0.00021917,2]
[386598751,1758413441367,-489.75,0.00021917,2]
[386598753,1758413441376,-400.0,0.00021917,2]
[386598755,1758413441386,-826.25,0.00021917,2]
[386598757,1758413441395,-557.93,0.00021917,2]
[386598759,1758413441404,-400.0,0.00021917,2]
[386598760,1758413441415,-1770.26,0.00021917,2]
[386598762,1758413441424,-400.0,0.00021917,2]
[386598765,1758413441433,-562.03,0.00021917,2]
[386598766,1758413441442,-400.0,0.00021917,2]
[386598768,1758413441453,-400.0,0.00021917,2]
[386598770,1758413441463,-418.75,0.00021917,2]
[386598772,1758413441472,-400.0,0.00021917,2]
[386598774,1758413441481,-1668.43,0.00021917,2]
[386598776,1758413441491,-502.13,0.00021917,2]
[386598778,1758413441500,-830.25,0.00021917,2]
[386598780,1758413441509,-400.0,0.00021917,2]
[386598782,1758413441519,-2273.0,0.00021917,2]
[386598784,1758413441528,-688.2,0.00021917,2]
[386598786,1758413441538,-469.4,0.00021917,2]
[386598788,1758413441547,-400.0,0.00021917,2]
[386598790,1758413441556,-459.64685264,0.00021917,2]
[386598792,1758413441565,-610.23,0.00021917,2]
[386598794,1758413441575,-2211.03,0.00021917,2]
[386598796,1758413441584,-787.42,0.00021917,2]
[386598798,1758413441594,-400.0,0.00021917,2]
[386598800,1758413441604,-400.0,0.00021917,2]
[386598802,1758413441613,-1424.49,0.00021917,2]
[386598804,1758413441622,-400.0,0.00021917,2]
[386598806,1758413441631,-500.0,0.00021917,2]
[386598808,1758413441641,-567.89,0.00021917,2]
[386598810,1758413441650,-400.0,0.00021917,2]
[386598812,1758413441659,-976.55,0.00021917,2]
[386598814,1758413441668,-1123.02,0.00021917,2]
[386598816,1758413441678,-400.0,0.00021917,2]
[386598818,1758413441688,-400.0,0.00021917,2]
[386598820,1758413441701,-1139.92,0.00021917,2]
[386598822,1758413441711,-400.0,0.00021917,2]
[386598824,1758413441720,-1063.19,0.00021917,2]
[386598826,1758413441731,-400.0,0.00021917,2]
[386598828,1758413441740,-400.0,0.00021917,2]
[386598830,1758413441750,-1007.8,0.00021917,2]
[386598832,1758413441759,-527.91,0.00021917,2]
[386598834,1758413441769,-400.0,0.00021917,2]
[386598836,1758413441779,-400.0,0.00021917,2]
[386598838,1758413441788,-400.0,0.00021917,2]
[386598840,1758413441797,-400.0,0.00021917,2]
[386598842,1758413441807,-1920.72,0.00021917,2]
[386598844,1758413441817,-963.49,0.00021917,2]
[386598846,1758413441827,-400.0,0.00021917,2]
[386598848,1758413441836,-501.17,0.00021917,2]
[386598850,1758413441845,-803.64,0.00021917,2]
[386598852,1758413441856,-400.0,0.00021917,2]
[386598854,1758413441867,-570.59,0.00021917,2]
[386598856,1758413441876,-1294.07,0.00021917,2]
[386598858,1758413441886,-1265.64,0.00021917,2]
[386598860,1758413441895,-400.0,0.00021917,2]
[386598862,1758413441905,-400.0,0.00021917,2]
[386598864,1758413441914,-400.0,0.00021917,2]
[386598865,1758413441923,-221.9895401,0.00021917,2]
[386598866,1758413441933,-400.0,0.00021917,2]
[386598867,1758413441942,-400.0,0.00021917,2]
[386598868,1758413441951,-428.59,0.00021917,2]
[386598869,1758413441960,-400.0,0.00021917,2]
[386598870,1758413441970,-1546.48,0.00021917,2]
[386598871,1758413441979,-400.0,0.00021917,2]
[386598872,1758413441987,-1507.2,0.00021917,2]
[386598873,1758413441997,-400.0,0.00021917,2]
[386598874,1758413442006,-400.0,0.00021917,2]
[386598875,1758413442015,-400.0,0.00021917,2]
[386598876,1758413442024,-1058.4,0.00021917,2]
[386598877,1758413442034,-400.0,0.00021917,2]
[386598878,1758413442043,-400.0,0.00021917,2]
[386598879,1758413442053,-429.31,0.00021917,2]
[386598880,1758413442062,-400.0,0.00021917,2]
[386598881,1758413442071,-400.0,0.00021917,2]
[386598882,1758413442080,-400.0,0.00021917,2]
[386598883,1758413442089,-451.57,0.00021917,2]
[386598884,1758413442099,-687.41,0.00021917,2]
[386598885,1758413442108,-481.75,0.00021917,2]
[386598886,1758413442117,-599.37,0.00021917,2]
[386598887,1758413442171,-1402.86,0.00021917,2]
[386598888,1758413442180,-1003.92,0.00021917,2]
[386598889,1758413442189,-400.0,0.00021917,2]
[386598890,1758413442199,-400.0,0.00021917,2]
[386598891,1758413442208,-400.0,0.00021917,2]
[386598892,1758413442217,-400.0,0.00021917,2]
[386598893,1758413442226,-1103.23,0.00021917,2]
[386598894,1758413442236,-400.0,0.00021917,2]
[386598895,1758413442245,-400.0,0.00021917,2]
[386598896,1758413442254,-400.0,0.00021917,2]
[386598897,1758413442264,-400.0,0.00021917,2]
[386598898,1758413442273,-400.0,0.00021917,2]
[386598899,1758413442282,-1461.44,0.00021917,2]
[386598900,1758413442291,-500.0,0.00021917,2]
[386598901,1758413442300,-400.0,0.00021917,2]
[386598902,1758413442310,-400.0,0.00021917,2]
[386598903,1758413442319,-1194.01,0.00021917,2]
[386598904,1758413442329,-1291.19,0.00021917,2]
[386598905,1758413442339,-470.05,0.00021917,2]
[386598906,1758413442348,-400.0,0.00021917,2]
[386598907,1758413442358,-400.0,0.00021917,2]
[386598908,1758413442367,-411.02,0.00021917,2]
[386598909,1758413442377,-400.0,0.00021917,2]
[386598910,1758413442388,-400.0,0.00021917,2]
[386598911,1758413442397,-400.0,0.00021917,2]
[386598912,1758413442406,-400.0,0.00021917,2]
[386598913,1758413442416,-400.0,0.00021917,2]
[386598914,1758413442425,-539.97,0.00021917,2]
[386598915,1758413442435,-3003.79,0.00021917,2]
[386598916,1758413442444,-400.0,0.00021917,2]
[386598917,1758413442453,-400.0,0.00021917,2]
[386598918,1758413442463,-446.2,0.00021917,2]
[386598919,1758413442472,-853.94,0.00021917,2]
[386598920,1758413442482,-400.0,0.00021917,2]
[386598921,1758413442491,-400.0,0.00021917,2]
[386598922,1758413442500,-400.0,0.00021917,2]
[386598923,1758413442509,-165.218402,0.00021917,2]
[386598924,1758413442518,-857.12,0.00021917,2]
[386598925,1758413442528,-400.0,0.00021917,2]
[386598926,1758413442537,-400.0,0.00021917,2]
[386598927,1758413442546,-402.33195739,0.00021917,2]
[386598928,1758413442556,-183.044654,0.00021917,2]
[386598929,1758413442565,-400.0,0.00021917,2]
[386598930,1758413442575,-181.66322,0.00021917,2]
[386598931,1758413442584,-154.167571,0.00021917,2]
[386598932,1758413442593,-400.0,0.00021917,2]
[386598933,1758413442603,-1397.01,0.00021917,2]
[386598934,1758413442612,-414.31929616,0.00021917,2]
[386598935,1758413442621,-400.0,0.00021917,2]
[386598936,1758413442630,-1137.03,0.00021917,2]
[386598937,1758413442639,-500.0,0.00021917,2]
[386598938,1758413442649,-500.0,0.00021917,2]
[386598939,1758413442658,-1011.52,0.00021917,2]
[386598940,1758413442667,-155.372629,0.00021917,2]
[386598941,1758413442676,-400.0,0.00021917,2]
[386598942,1758413442685,-400.0,0.00021917,2]
[386598943,1758413442699,-400.0,0.00021917,2]
[386598944,1758413442708,-400.0,0.00021917,2]
[386598945,1758413442717,-400.0,0.00021917,2]
[386598947,1758413442726,-1518.76,0.00021917,2]
[386598948,1758413442735,-460.06,0.00021917,2]
[386598949,1758413442744,-406.91338053,0.00021917,2]
[386598950,1758413442753,-400.0,0.00021917,2]
[386598951,1758413442762,-400.0,0.00021917,2]
[386598952,1758413442771,-400.0,0.00021917,2]
[386598953,1758413442782,-150.709065,0.00021917,2]
[386598954,1758413442791,-500.0,0.00021917,2]
[386598955,1758413442800,-1250.46,0.00021917,2]
[386598956,1758413442809,-400.0,0.00021917,2]
[386598957,1758413442819,-460.14,0.00021917,2]
[386598958,1758413442828,-400.0,0.00021917,2]
[386598959,1758413442838,-533.38,0.00021917,2]